Cogmind - Beta 13 @@@ ROGUE MODE // 2024.06.25 @ 00:41:28 Player: paplal Result: Destroyed by H-61 Shepherd with Heavy Assault Cannon Performance ------------- Evolutions (2) 1000 Regions Visited (5) 1000 Robots Destroyed (33) 165 Value Destroyed (806) 806 Prototype IDs (2) 40 Alien Tech Used (0) 0 Bonus (0) 0 TOTAL SCORE: 3011 Bonus ------- None Cogmind --------- Core Integrity 0/550 Matter 211/300 Energy 203/250 System Corruption 0% Temperature Cool (0) Movement Rolling (100) Location -8/Materials Parts ------- > --- POWER (1) -------- Ion Engine > --- PROPULSION (5) --- Armored Huge Wheel Armored Huge Wheel > --- UTILITY (3) ------ High-capacity Storage Unit Improved Utility Shielding > --- WEAPON (2) ------- Field Laser Rocket Launcher > --- INVENTORY (20) --- Light Ion Engine Armored Huge Wheel Armored Huge Wheel Armored Huge Wheel Armored Huge Wheel Armored Huge Wheel Cryofiber Web Particle Charger Reaction Control System Dynamic Insulation System Rocket Launcher Mining Laser Heavy Flail Peak State ------------ > --- POWER ------------ Ion Engine > --- PROPULSION ------- Light Treads Armored Huge Wheel Armored Huge Wheel > --- UTILITY ---------- High-capacity Storage Unit Makeshift Terrain Scanner Improved Utility Shielding > --- WEAPON ----------- Flak Cannon > --- INVENTORY -------- Light Ion Engine Armored Huge Wheel Armored Huge Wheel Armored Huge Wheel Armored Huge Wheel Armored Huge Wheel Cryofiber Web Particle Charger Reaction Control System Dynamic Insulation System Field Laser Rocket Launcher Rocket Launcher Mining Laser Heavy Flail [Rating: 38] Favorites ----------- Power Ion Engine Engine Ion Engine Power Core Light Nuclear Core Propulsion Light Treads Treads Light Treads Wheel Armored Huge Wheel Flight Unit Flight Unit Utility Small Storage Unit Device Makeshift Terrain Scanner Storage Small Storage Unit Processor Signal Interpreter Protection Improved Utility Shielding Weapon Small Laser Energy Gun Small Laser Ballistic Gun Light Assault Rifle Ballistic Cannon Light Cannon Launcher Rocket Launcher Special Weapon Mining Laser Impact Weapon Heavy Mace Build | -11 -10 -10 -10 -9 -8 ------- Run | Yrd Mat Min Exi Min Mat Slots Evolved 4 | . . . . . 4 Power . | . . . . . . Propulsion 3 | . . . . . 3 Utility 1 | . . . . . 1 Weapon . | . . . . . . Parts Attached 33 | 4 4 . 1 1 23 Power 4 | 1 . . . 1 2 Engine 3 | 1 . . . 1 1 Core 1 | . . . . . 1 Reactor . | . . . . . . Propulsion 11 | 2 . . . . 9 Treads 5 | 2 . . . . 3 Leg . | . . . . . . Wheel 2 | . . . . . 2 Hover . | . . . . . . Flight 4 | . . . . . 4 Utility 5 | 1 1 . 1 . 2 Device 1 | . . . 1 . . Storage 2 | 1 . . . . 1 Processor 1 | . 1 . . . . Hackware . | . . . . . . Protection 1 | . . . . . 1 Artifact . | . . . . . . Weapon 13 | . 3 . . . 10 Energy Gun 3 | . 1 . . . 2 Energy Cannon . | . . . . . . Ballistic Gun 2 | . 1 . . . 1 Ballistic Cannon 2 | . 1 . . . 1 Launcher 4 | . . . . . 4 Special Weapon 1 | . . . . . 1 Impact Weapon 1 | . . . . . 1 Slashing Weapon . | . . . . . . Piercing Weapon . | . . . . . . Special Melee Weapon . | . . . . . . Unidentified Prototypes 2 | . . . . . 2 Parts Lost 9 | . . . . . 9 Power 2 | . . . . . 2 Propulsion 3 | . . . . . 3 Utility 1 | . . . . . 1 Weapon 3 | . . . . . 3 Highest Loss Streak 3 | . . . . . 3 To Critical Strikes . | . . . . . . Average Slot Usage (%) 81 | . 93 100 100 100 63 Engine 9 | . 14 14 14 14 4 Core 1 | . . . . . 4 Treads 19 | . 28 28 28 28 10 Wheel 1 | . . . . . 2 Flight 1 | . . . . . 2 Device 7 | . . . 5 14 8 Storage 11 | . 14 14 14 14 9 Processor 2 | . 8 14 8 . . Protection 4 | . . . . . 8 Energy Gun 9 | . 14 14 14 14 5 Ballistic Gun 2 | . 12 . . . . Ballistic Cannon 7 | . 1 14 14 14 5 Naked Turns . | . . . . . . Heaviest Build 54 | 10 14 14 15 15 54 Greatest Support 56 | 40 40 40 40 40 56 Greatest Overweight (x) 6 | . . . . . 6 Average Overweight (x) . | . . . . . . Largest Inventory Capacity 20 | 8 8 8 8 8 20 Average Capacity 9 | 7 8 8 8 8 11 Most Carried 20 | 4 8 8 8 8 20 Average Carried 7 | 1 6 8 7 6 9 Final Capacity 20 | 8 8 8 8 8 20 Final Carried 18 | 2 8 8 6 8 18 Class Distribution -------------------- 96% | Mutant 3% | Scavenger-Sprinter Dominant Class ---------------- Mutant | -10/Materials Mutant | -10/Mines Mutant | -10/Exiles Mutant | -9/Mines Mutant | -8/Materials Resources | -11 -10 -10 -10 -9 -8 ----------- Run | Yrd Mat Min Exi Min Mat Matter Collected 735 | 65 76 . . 34 560 Remotely . | . . . . . . Salvage Created 797 | . 91 . . . 706 Parts 63 | . 12 . . . 51 Haulers Intercepted . | . . . . . . Recyclers Shooed 1 | . . . . . 1 Parts Field Recycled . | . . . . . . Retrieved Matter . | . . . . . . Parts Self-Destructed . | . . . . . . Prevented . | . . . . . . Kills | -11 -10 -10 -10 -9 -8 ------- Run | Yrd Mat Min Exi Min Mat Combat Hostiles Destroyed 26 | . 3 . . 1 22 Melee 3 | . . . . 1 2 Guns 9 | . 3 . . . 6 Cannons 10 | . . . . . 10 AOE 3 | . . . . . 3 Classes Destroyed 10 | . 3 . . 1 6 Worker 2 | . . . . . 2 Builder 1 | . . . . . 1 Tunneler 1 | . 1 . . . . Recycler 1 | . . . . . 1 Watcher 2 | . 1 . . . 1 Swarmer 13 | . 3 . . . 10 Grunt 6 | . . . . . 6 Sentry 5 | . . . . . 5 Demolisher 1 | . . . . 1 . Hunter 1 | . . . . . 1 Best Kill Streak 7 | . 3 . . 1 7 Combat Bots Only 7 | . 3 . . 1 7 Max Kills in Single Turn 2 | . 1 . . 1 2 Gunslinging . | . . . . . . Exploded 1 | . . . . . 1 Melee 1 | . . . . 1 1 Uniques/NPCs Destroyed . | . . . . . . Combat | -11 -10 -10 -10 -9 -8 -------- Run | Yrd Mat Min Exi Min Mat Hostile Shots Fired 207 | . 13 . . . 194 Missed 49 | . 4 . . . 45 Damage Taken 2282 | . 78 . . . 2204 Core 624 | . 36 . . . 588 Absorbed by Shields . | . . . . . . Redirected to Shielding 87 | . . . . . 87 Core Remaining (%) 92 | 100 . . . 85 . Volleys Fired 89 | . 16 . . . 73 Largest 2 | . 2 . . . 2 Hottest 163 | . 60 . . . 163 Shots Fired 122 | . 31 . . . 91 Gun 68 | . 31 . . . 37 Cannon 45 | . . . . . 45 Launcher 8 | . . . . . 8 Special 1 | . . . . . 1 Kinetic 61 | . 16 . . . 45 Thermal 37 | . 15 . . . 22 Explosive 8 | . . . . . 8 Electromagnetic 16 | . . . . . 16 Robot Hit Streak 14 | . 4 . . . 14 Robot Miss Streak 13 | . 2 . . . 13 Penetration Max . | . . . . . . Secondary Targets 1 | . 1 . . . . Max Gunslinging Chain 1 | . 1 . . . . Shots Hit Robots 88 | . 19 . . . 69 Core Hits 75 | . 7 . . 1 67 Critical Kills . | . . . . . . Critical Parts Destroyed . | . . . . . . Critical Strikes . | . . . . . . Melee Attacks 9 | . . . . . 9 Impact 9 | . . . . . 9 Slashing . | . . . . . . Piercing . | . . . . . . Sneak Attacks . | . . . . . . Combat Hostiles . | . . . . . . Follow-up Attacks . | . . . . . . Damage Inflicted 1961 | . 166 . . 3 1792 Guns 526 | . 166 . . . 360 Cannons 688 | . . . . . 688 Explosions 502 | . . . . . 502 Melee 233 | . . . . . 233 Ramming 12 | . . . . 3 9 Kinetic 799 | . 111 . . . 688 Thermal 218 | . 55 . . . 163 Explosive 466 | . . . . . 466 Electromagnetic 233 | . . . . . 233 Impact 233 | . . . . . 233 Slashing . | . . . . . . Piercing . | . . . . . . Highest Corruption . | . . . . . . Average Corruption . | . . . . . . Corruption Purged . | . . . . . . Corruption Blocked . | . . . . . . Overload Shots . | . . . . . . Overflow Damage 6 | . . . . . 6 Projectiles . | . . . . . . Explosions . | . . . . . . Melee 6 | . . . . . 6 Knockbacks 19 | . . . . . 19 Impact . | . . . . . . Kinetic 18 | . . . . . 18 Secondary 1 | . . . . . 1 Self-Inflicted Damage 4 | . . . . . 4 Shots . | . . . . . . Rammed 3 | . . . . 2 1 Targets Rammed 4 | . . . . 3 1 Kicked . | . . . . . . Crushed 1 | . . . . 1 . Highest Temperature 211 | . 40 . . . 211 Average Temperature 26 | . 24 . . . 27 Received Heat Transfer 549 | . . . . . 549 Siege Activations . | . . . . . . Robots Corrupted . | . . . . . . Combat Hostiles . | . . . . . . Parts Fried 2 | . . . . . 2 Impact Corruptions 1 | . . . . . 1 Robots Melted . | . . . . . . Combat Hostiles . | . . . . . . Parts Melted . | . . . . . . Heat Transferred 462 | . 125 . . . 337 Parts Sabotaged . | . . . . . . Parts Stolen . | . . . . . . Parts Stripped . | . . . . . . Power Chain Reactions 1 | . . . . . 1 Alert | -11 -10 -10 -10 -9 -8 ------- Run | Yrd Mat Min Exi Min Mat Peak Influence 370 | . 127 14 . 30 370 Initial 14 | . . 14 . . 11 Average 129 | . 69 14 . 2 219 Maximum Alert Level 1 | . . . . . 1 Low Security (%) 72 | 100 100 100 . 100 46 Level 1 27 | . . . . . 53 Level 2 . | . . . . . . Level 3 . | . . . . . . Level 4 . | . . . . . . Level 5 . | . . . . . . High Security . | . . . . . . Max Security . | . . . . . . Squads Dispatched 6 | . . . . . 6 Investigation . | . . . . . . Extermination . | . . . . . . Reinforcement 6 | . . . . . 6 Assault . | . . . . . . Garrison . | . . . . . . Intercept . | . . . . . . Searches Triggered . | . . . . . . Construction Impeded 1 | . . . . . 1 Haulers Reinforced . | . . . . . . Active Scanning Responses . | . . . . . . Cargo Convoy Interrupts . | . . . . . . Stealth | -11 -10 -10 -10 -9 -8 --------- Run | Yrd Mat Min Exi Min Mat Distress Signals 4 | . . . . . 4 Communications Jammed . | . . . . . . Distress Signals . | . . . . . . Times Spotted 50 | . 9 . . 1 40 Peak Tracking Total 9 | . 3 . . 1 9 Tactical Retreats 2 | . . . . . 2 Traps | -11 -10 -10 -10 -9 -8 ------- Run | Yrd Mat Min Exi Min Mat Traps Triggered . | . . . . . . Indirectly . | . . . . . . Trap Hack Attempts . | . . . . . . Triggered . | . . . . . . Disarmed . | . . . . . . Reprogrammed . | . . . . . . Reused . | . . . . . . Traps Extracted . | . . . . . . Installed . | . . . . . . Triggered . | . . . . . . Machines | -11 -10 -10 -10 -9 -8 ---------- Run | Yrd Mat Min Exi Min Mat Machines Disabled . | . . . . . . Max in Single Turn . | . . . . . . Machines Repaired . | . . . . . . Machines Dismantled . | . . . . . . Machines Sabotaged . | . . . . . . Overloaded Fab Kills . | . . . . . . Hacking | -11 -10 -10 -10 -9 -8 --------- Run | Yrd Mat Min Exi Min Mat Machines Accessed 8 | . 5 . . . 3 Terminals 6 | . 4 . . . 2 Fabricators . | . . . . . . Repair Stations . | . . . . . . Recycling Units 2 | . 1 . . . 1 Scanalyzers . | . . . . . . Garrison Access . | . . . . . . Total Hacks 15 | . 12 . . . 3 Successful 7 | . 4 . . . 3 Failed 8 | . 8 . . . . Catastrophic 2 | . 2 . . . . Database Lockouts . | . . . . . . Manual . | . . . . . . Terminals 11 | . 9 . . . 2 Fabricators . | . . . . . . Repair Stations . | . . . . . . Recycling Units 4 | . 3 . . . 1 Scanalyzers . | . . . . . . Garrison Access . | . . . . . . Terminal Hacks 3 | . 1 . . . 2 Alert Level 2 | . . . . . 2 Security Status 1 | . 1 . . . . Fabricator Hacks . | . . . . . . Repair Station Hacks . | . . . . . . Recycling Unit Hacks 4 | . 3 . . . 1 Report Inventory 1 | . 1 . . . . Retrieve Matter 1 | . 1 . . . . Retrieve Components 2 | . 1 . . . 1 Scanalyzer . | . . . . . . Garrison Access Hacks . | . . . . . . Unauthorized Hacks . | . . . . . . Terminals . | . . . . . . Fabricators . | . . . . . . Repair Stations . | . . . . . . Recycling Units . | . . . . . . Scanalyzers . | . . . . . . Garrison Access . | . . . . . . Data Cores Recovered . | . . . . . . Used . | . . . . . . Hacking Detections 4 | . 3 . . . 1 Full Trace Events . | . . . . . . Feedback Events . | . . . . . . Feedback Blocked . | . . . . . . Robot Schematics Acquired . | . . . . . . Robots Built . | . . . . . . Authchips . | . . . . . . Time . | . . . . . . Total Robot Build Rating . | . . . . . . Part Schematics Acquired . | . . . . . . Parts Built . | . . . . . . Authchips . | . . . . . . Time . | . . . . . . Total Part Build Rating . | . . . . . . Parts Repaired . | . . . . . . Time . | . . . . . . Parts Recycled . | . . . . . . Recycled Matter . | . . . . . . Retrieved Matter . | . . . . . . Retrieved Components 11 | . 1 . . . 10 Parts Scanalyzed . | . . . . . . Part Schematics Acquired . | . . . . . . Parts Damaged . | . . . . . . Bothacking | -11 -10 -10 -10 -9 -8 ------------ Run | Yrd Mat Min Exi Min Mat Used RIF Installer . | . . . . . . Robots Hacked . | . . . . . . Non-combat . | . . . . . . Combat . | . . . . . . Robot Hacks Applied . | . . . . . . Relay Couplers Released . | . . . . . . Fabnet Peak Effective % . | . . . . . . Robots Rewired . | . . . . . . Allies Hacked . | . . . . . . Hacks Repelled . | . . . . . . Allies | -11 -10 -10 -10 -9 -8 -------- Run | Yrd Mat Min Exi Min Mat Total Allies 2 | . . 2 . . . Largest Group 2 | . . 2 2 . . Highest-Rated Group 41 | . . 41 41 . . Highest-Rated Ally 31 | . . 31 31 . . Total Orders . | . . . . . . Ally Attacks . | . . . . . . Total Damage . | . . . . . . Kills . | . . . . . . Allies Corrupted . | . . . . . . Allies Melted . | . . . . . . Intel | -11 -10 -10 -10 -9 -8 ------- Run | Yrd Mat Min Exi Min Mat Robot Analysis Total . | . . . . . . Derelict Logs Recovered . | . . . . . . Drone Launches . | . . . . . . Drone Recoveries . | . . . . . . Exploration | -11 -10 -10 -10 -9 -8 ------------- Run | Yrd Mat Min Exi Min Mat Turns Passed 2494 | 46 517 66 246 463 1156 Spaces Moved 1457 | 31 275 42 152 285 672 Core 53 | 11 . . . . 42 Treads 1118 | 20 275 42 152 285 344 Legs . | . . . . . . Wheels 113 | . . . . . 113 Hover . | . . . . . . Flight 173 | . . . . . 173 Fastest Speed 31 | 50 160 160 160 160 31 Average Speed 147 | 120 160 160 160 160 134 Slowest Speed 350 | 160 160 160 160 160 350 Overloaded Moves . | . . . . . . Propulsion Burnouts . | . . . . . . Robots Hopped . | . . . . . . Cave-ins Triggered . | . . . . . . Exploration Rate (%) 38 | 3 41 10 50 70 56 Regions Visited 5 Branch Regions 3 Pre-discovered Areas . | . . . . . . Known Exits Taken 2 | . 1 1 . . . Unknown Exits Taken 3 | 1 . . 1 1 . Scrap Searched 2 | . . . . 2 . Spaces Dug . | . . . . . . Terrain Destroyed 55 | . . . . . 55 Melee . | . . . . . . Projectile . | . . . . . . AOE 55 | . . . . . 55 Terrain Rammed . | . . . . . . Walls Destroyed . | . . . . . . Machines Disabled . | . . . . . . Actions | -11 -10 -10 -10 -9 -8 --------- Run | Yrd Mat Min Exi Min Mat Total 1667 | 40 325 41 155 290 816 Wait 20 | . 18 . . . 2 Move 1452 | 30 274 41 151 284 672 Hop . | . . . . . . Pick Up 43 | 6 10 . 1 2 24 Fast Attach 3 | . 2 . . . 1 Attach 22 | 4 2 . . . 16 Detach 1 | . . . . . 1 Swap 8 | . . . 1 1 6 Drop 16 | . 3 . 2 . 11 Fire 89 | . 16 . . . 73 Melee 9 | . . . . . 9 Ram 1 | . . . . . 1 Kick . | . . . . . . Crush 3 | . . . . 3 . Escape Stasis . | . . . . . . Rewire . | . . . . . . Trap . | . . . . . . Miscellaneous . | . . . . . . Route ------- -11/Scrapyard -10/Materials (discovered 3 exits: [*Mat] / *Min x2) -10/Mines -10/Exiles -9/Mines -8/Materials (discovered 1 exit: [*Fac]) History --------- Turn | Location | Event 21 | -11/Scrapyard | Discovered new exit (range 16) 47 | -11/Scrapyard | Entered Materials 86 | -10/Materials | Discovered new exit (range 4) 291 | -10/Materials | Discovered new exit (range 11) 301 | -10/Materials | Build established: Mutant 543 | -10/Materials | Discovered new exit (range 13) 563 | -10/Materials | Identified exit to Mines 564 | -10/Materials | Entered Mines 622 | -10/Mines | Deemed a non-threat by the Exiles lab entrance 622 | -10/Mines | Discovered new exit (range 5) 627 | -10/Mines | Identified exit to Exiles 630 | -10/Mines | Entered Exiles 630 | -10/Exiles | Found Exiles lab destroyed 630 | -10/Exiles | Accompanied by 2 allies 660 | -10/Exiles | Led the pair of lost Derelicts to a safe place 855 | -10/Exiles | Discovered new exit (range 14) 876 | -10/Exiles | Entered Mines 1207 | -9/Mines | Received a Rocket Launcher from a helpful Derelict 1238 | -9/Mines | Assembled infested the area 1299 | -9/Mines | Discovered new exit (range 11) 1339 | -9/Mines | Entered Materials 1339 | -8/Materials | Evolved 4 slots: Propulsion x3, Utility x1 1502 | -8/Materials | Core integrity fell below 50% 1528 | -8/Materials | Lost 3 parts (1p1n1w) 1741 | -8/Materials | Discovered new exit (range 3) 2074 | -8/Materials | Core integrity fell below 20% 2105 | -8/Materials | Destroyed 7 combat bots 2495 | -8/Materials | Destroyed by H-61 Shepherd with Heavy Assault Cannon Last Messages --------------- 02428_ Dropped Lgt. Treads. 02429_ Connecting with Terminal... >>Alert(Check) Current Alert Level: 1-U 02442_ W-25 Informer knocked back. 02469_ ALERT: Suspicious intruders detected, dispatching Specialist reinforcements to area. 02474_ H-61 Shepherd calls for reinforcements. 02474_ ALERT: Hostile activity reported, dispatching reinforcements to area. 02476_ Flak Cannon blasted off. 02476_ Knocked back. 02483_ Mak. Terrain Scanner destroyed. 02483_ Knocked back. 02483_ ALERT: Hostiles spotted, dispatching reinforcements to Terminal M001. 02485_ Penetrated by Slug. 02485_ Knocked back. 02487_ Penetrated by Slug. 02487_ Knocked back. Map ----- +----------------------------------------------------+ | ?????# #????# # !!! # #??# ### | | ?????# ##???# + ! # #??# % = | | ?????# #????# # !! # #?##% | | ???### ##+##+####?# #! + #??#% = | | ?????# # #?# ######## #??# | | ?????# # """#?# #??????# #### ! | | ?????# # ! """#?# #+#?????## #??# ! | | ?????# # """#?# +?? ?????# #?## ### | | ?????# # #?# ##????????# #??# # | | ?????# # = ! #?# #?????????# #??#% + " | | ? ???+ # "T" #?# #???????###+##+##+#### # " | | ?????# # """ * #?# #? ???? # #### # | | ??? ?# # #?# #???? ??# #??# ### | | ?????# #####+###### ####+##+# / #??# ### | | ?????# # #??# | | ?#### + "" "" ##?#! | | ??+ # ""S"" #?## | | ??##### ##### ############### """" #??####### | | ??#####+##### #???????????#?# ##????##?# | | ??# # #??#??????????###########??????#?# | | "?# # ##############???##?????##?#?#?? | | ??# # # #???#????#???????##? | | ??# # # #???##?????##???### ? | | ??# # # #?????#?##??#?#?????? | | ??# + + % #??##????#??????#??? | | ??# # # %% @ #?????????????##??#?# | | ??# # ########;/;###???????????#???#???? | | ??########### #?????# H #????????????##??#???? | | ??????????? ??? w% #??????????????#?????? | | ?????????? ! #??#??????#??##??????? | | ????????? Yk x #?????????#??????????# | | ????????####+########## #??????????#?????????? | | ??????????????????????## g ##???#?????????????? ?? | | ?????????????????#?????# x#?????????????????????? | | ??????????????"????#???# g#?????????????????????? | | ???????????????????????#k #?????????????????????? | | ???????????????????? ??#k #??#??????????????????? | | ???????????? ??????????# #???#?????????????????? | | ???????????????????????# #?????#???????????????? | | ???????????????????????? #?????????????????????? | | ???????????????????????? ??????????????????????? | | ?????????????????#?????? ??????????????????????? | | ?????????????????????????????????????????????????? | | ?????????????????????????????????????????????????? | | ?????????????????????????????????????????????????? | | ?????????????????????????????????????????????????? | | ?????????????????????????????????????????????????? | | ?????????????????????????????????????????????????? | | ?????????????????????????????????????????????????? | | ?????????????????????????????????????????????????? | +----------------------------------------------------+ Best States ------------- Heat Dissipation 31 Energy Generation 14 Energy Capacity 250 Matter Stores 300 Matter Capacity 300 Sight Range 16 Terrain Scan Range 18 Terrain Scan Density 10 Utility Shielding 66 Evasion (%) 63 Recoil Reduction 2 Item Schematics ----------------- None Robot Schematics ------------------ None Fabricated ------------ Nothing Alien Tech Used ----------------- None Achievements -------------- None Challenges ------------ None Game ------ Seed HardlightChromaticBrace Manual? 0 Play Time 00:21:46 Cumulative 18.6 hours Start 2024.06.18 @ 23:13:51 End 2024.06.25 @ 00:41:28 Sessions 3 Manual Loads 0 Difficulty Rogue Special Mode None Game No. 32 Rogue 32 Adventurer 0 Explorer 0 Win Type - Total 0 Types 0/0/0/0/0/0/0/0/0 Lore% 14 Gallery% 24 Achievement% 17 Wizard Run 0 Options --------- Layout 2 ASCII 0 Keyboard 0 Movement Mouse Keybinds 0 Fullscreen 1 Font 48/Smallcaps Map View 50x44 Zoom Use 0% Tactical HUD 1 Map Filters NONE Filters NONE Steam 1 RUN: d39d704e-22b0-4db7-983d-a5f167debfb2